Cogmind - Beta 17 @@@ ROGUE MODE // 2026.06.27 @ 12:54:20 Player: Arzee Result: Self-destructed Performance ------------- Evolutions (1) 500 Regions Visited (3) 600 Robots Destroyed (54) 270 Value Destroyed (1036) 1036 Prototype IDs (3) 60 Alien Tech Used (0) 0 Bonus (-235) -235 TOTAL SCORE: 2231 Bonus ------- Friendly Fire -235 Cogmind --------- Core Integrity 309/400 Matter 266/300 Energy 200/200 System Corruption 6% Temperature Cool (0) Movement Core (1600) Ox31 Location -9/Storage Parts ------- > --- POWER (1) -------- Cold Fusion Reactor > --- PROPULSION (4) --- (None) > --- UTILITY (2) ------ Huge Storage Unit Targeting Computer > --- WEAPON (2) ------- Maul > --- INVENTORY (25) --- Ion Engine Light Ion Engine Improved Ion Engine Improved Ion Engine Heavy Ion Engine Cooled Ion Engine Light Nuclear Core Aluminum Leg Aluminum Leg Aluminum Leg Aluminum Leg Aluminum Leg Improved Aluminum Leg Visual Processing Unit Targeting Computer Light Armor Plating Hardened Light Armor Plating Hardened Light Armor Plating Hardened Light Armor Plating Medium Laser Small Laser Improved Medium Laser Peak State ------------ > --- POWER ------------ Cold Fusion Reactor > --- PROPULSION ------- Light Treads Light Treads Light Treads Light Treads > --- UTILITY ---------- Huge Storage Unit Targeting Computer > --- WEAPON ----------- Rocket Launcher Maul > --- INVENTORY -------- Ion Engine Light Ion Engine Improved Ion Engine Improved Ion Engine Heavy Ion Engine Cooled Ion Engine Light Nuclear Core Light Treads Aluminum Leg Aluminum Leg Aluminum Leg Aluminum Leg Aluminum Leg Visual Processing Unit Targeting Computer Light Armor Plating Hardened Light Armor Plating Hardened Light Armor Plating Hardened Light Armor Plating Medium Laser Small Laser Improved Medium Laser [Rating: 19] Favorites ----------- Power Cold Fusion Reactor Engine Heavy Ion Engine Reactor Cold Fusion Reactor Propulsion Light Treads Treads Light Treads Utility Targeting Computer Storage Huge Storage Unit Processor Targeting Computer Weapon Grenade Launcher Energy Gun Medium Laser Launcher Grenade Launcher Impact Weapon Maul Build | -11 -10 -9 -9 ------- Run | Yrd Mat Mat Sto Slots Evolved 2 | . . 2 . Power . | . . . . Propulsion 2 | . . 2 . Utility . | . . . . Weapon . | . . . . Parts Attached 22 | 6 3 2 11 Power 4 | 1 . 1 2 Engine 3 | 1 . 1 1 Core . | . . . . Reactor 1 | . . . 1 Propulsion 8 | 2 . 1 5 Treads 8 | 2 . 1 5 Leg . | . . . . Wheel . | . . . . Hover . | . . . . Flight . | . . . . Utility 3 | 1 2 . . Device . | . . . . Storage 2 | 1 1 . . Processor 1 | . 1 . . Hackware . | . . . . Protection . | . . . . Artifact . | . . . . Weapon 7 | 2 1 . 4 Energy Gun 3 | 2 . . 1 Energy Cannon . | . . . . Ballistic Gun . | . . . . Ballistic Cannon . | . . . . Launcher 3 | . 1 . 2 Special Weapon . | . . . . Impact Weapon 1 | . . . 1 Slashing Weapon . | . . . . Piercing Weapon . | . . . . Special Melee Weapon . | . . . . Unidentified Prototypes 3 | . . 1 2 Parts Lost 10 | . . . 10 Power . | . . . . Propulsion 7 | . . . 7 Utility . | . . . . Weapon 3 | . . . 3 Highest Loss Streak 4 | . . . 4 To Critical Strikes . | . . . . Average Backups 14 | 2 5 10 19 Power 4 | . 1 3 6 Propulsion 4 | 1 2 2 5 Utility 2 | . . 1 3 Weapon 2 | . 1 2 2 Tool/Special . | . . . . Unused Backups 19 | . . . 19 Power 6 | . . . 6 Propulsion 6 | . . . 6 Utility 6 | . . . 6 Weapon 1 | . . . 1 Tool/Special . | . . . . Average Slot Usage (%) 92 | . 97 87 92 Engine 7 | . 14 11 4 Reactor 3 | . . . 6 Treads 34 | . 28 32 37 Storage 11 | . 12 11 11 Processor 11 | . 12 11 11 Energy Gun 7 | . 15 11 3 Launcher 11 | . 12 11 11 Impact Weapon 3 | . . . 6 Peak Build Rating 19 | 6 7 11 19 Average Rating 12 | 4 6 9 15 On Entrance 6 | . 6 7 11 Avg Prop Armor Cover (%) . | . . . . Naked Turns . | . . . . Heaviest Build 99 | 11 88 93 99 Greatest Support 80 | 40 40 60 80 Greatest Overweight (x) 2 | . 2 2 2 Average Overweight (x) 1 | . 1 1 1 Largest Inventory Capacity 25 | 8 25 25 25 Average Capacity 23 | 7 20 25 25 Most Carried 24 | 3 8 12 24 Average Carried 14 | 2 5 10 19 Final Capacity 25 | 8 25 25 25 Final Carried 22 | 3 8 12 22 Class Distribution -------------------- 72% | Mutant 27% | Scavenger-Mutant Dominant Class ---------------- Mutant | -10/Materials Mutant | -9/Materials Mutant | -9/Storage Resources | -11 -10 -9 -9 ----------- Run | Yrd Mat Mat Sto Matter Collected 965 | 173 187 131 474 Remotely . | . . . . Salvage Created 1469 | 18 184 256 1011 Parts 74 | 3 9 12 50 Haulers Intercepted 9 | . 2 2 5 Recyclers Shooed 2 | . 1 . 1 Parts Field Recycled . | . . . . Retrieved Matter . | . . . . Parts Self-Destructed . | . . . . Prevented . | . . . . Parts Restored . | . . . . Kills | -11 -10 -9 -9 ------- Run | Yrd Mat Mat Sto Combat Hostiles Destroyed 27 | . 3 4 20 Melee 1 | . . . 1 Guns 9 | . 3 . 6 AOE 16 | . . 4 12 Classes Destroyed 11 | 1 3 3 4 Worker 7 | . 1 1 5 Builder 3 | . . 3 . Tunneler 1 | 1 . . . Hauler 9 | . 2 2 5 Recycler 4 | . . 1 3 Mechanic 1 | . . . 1 Operator 1 | . . . 1 Swarmer 8 | . . . 8 Grunt 12 | . 3 3 6 Duelist 2 | . . . 2 Sentry 5 | . . 1 4 Thug 1 | . . . 1 Best Kill Streak 5 | 1 2 3 5 Combat Bots Only 5 | . 2 2 5 Max Kills in Single Turn 4 | 1 1 2 4 Gunslinging . | . . . . Exploded 3 | . . 1 3 Melee 1 | . . . 1 Uniques/NPCs Destroyed . | . . . . Combat | -11 -10 -9 -9 -------- Run | Yrd Mat Mat Sto Hostile Shots Fired 120 | . 19 19 82 Missed 47 | . 5 7 35 Hits 73 | . 14 12 47 Melee 4 | . . . 4 Projectile 69 | . 14 12 43 AOE 1 | . . . 1 Critical Strikes 3 | . . 1 2 Damage Taken 1606 | . 161 290 1155 Core 123 | . 32 17 74 Absorbed by Shields . | . . . . Core Remaining (%) 93 | 100 87 . . Volleys Fired 86 | 2 19 29 36 Largest 2 | 2 2 2 2 Hottest 90 | 90 80 80 80 Shots Fired 134 | 4 25 46 59 Gun 79 | 4 19 29 27 Cannon . | . . . . Launcher 55 | . 6 17 32 Special . | . . . . Kinetic . | . . . . Thermal 79 | 4 19 29 27 Explosive 55 | . 6 17 32 Electromagnetic . | . . . . Robot Hit Streak 16 | 2 12 16 16 Robot Miss Streak 2 | . 2 2 2 Penetration Max . | . . . . Secondary Targets . | . . . . Shots Hit Robots 121 | 2 19 34 66 Core Hits 89 | 1 18 23 47 Critical Kills . | . . . . Critical Parts Destroyed 4 | . . . 4 Critical Strikes 8 | . 1 1 6 Burn 4 | . 1 1 2 Smash 4 | . . . 4 Melee Attacks 35 | . . . 35 Impact 35 | . . . 35 Slashing . | . . . . Piercing . | . . . . Sneak Attacks 13 | . . . 13 Combat Hostiles . | . . . . Follow-up Attacks . | . . . . Damage Inflicted 4992 | 24 491 1132 3345 Guns 752 | 24 201 265 262 Cannons . | . . . . Explosions 2795 | . 290 867 1638 Melee 1445 | . . . 1445 Ramming . | . . . . Kinetic . | . . . . Thermal 752 | 24 201 265 262 Explosive 2795 | . 290 867 1638 Electromagnetic . | . . . . Impact 1445 | . . . 1445 Slashing . | . . . . Piercing . | . . . . Highest Corruption 6 | . . . 6 Average Corruption 6 | . . . 6 Corruption Purged . | . . . . Corruption Blocked . | . . . . Effects 9 | . . . 9 Message Errors 3 | . . . 3 Heat Flow Errors 1 | . . . 1 Energy Discharges 2 | . . . 2 Data Loss (minor) 2 | . . . 2 Data Loss (major) 1 | . . . 1 Overload Shots . | . . . . Overflow Damage 750 | . . . 750 Projectiles . | . . . . Explosions 101 | . . . 101 Melee 649 | . . . 649 Knockbacks 3 | . . . 3 Impact 3 | . . . 3 Kinetic . | . . . . Secondary . | . . . . Self-Inflicted Damage 291 | . 3 125 163 Shots 18 | . 1 8 9 Rammed . | . . . . Targets Rammed . | . . . . Kicked . | . . . . Crushed . | . . . . Highest Temperature 237 | 60 120 75 237 Average Temperature 31 | 30 35 27 33 Received Heat Transfer 375 | . 84 99 192 Siege Activations . | . . . . Martial Activations . | . . . . Shielding Activations . | . . . . Robots Disrupted . | . . . . Combat Hostiles . | . . . . Robots Corrupted 7 | . . . 7 Combat Hostiles 1 | . . . 1 Parts Fried 6 | . . . 6 Impact Corruptions 19 | . . . 19 Robots Melted . | . . . . Combat Hostiles . | . . . . Parts Melted 2 | . . 1 1 Heat Transferred 2504 | 62 666 851 925 Parts Sabotaged . | . . . . Parts Stolen . | . . . . Parts Stripped . | . . . . Power Chain Reactions . | . . . . Alert | -11 -10 -9 -9 ------- Run | Yrd Mat Mat Sto Maximum Alert Level 1 | . . . 1 Low Security (%) 97 | 100 100 100 95 Level 1 2 | . . . 4 Level 2 . | . . . . Level 3 . | . . . . Level 4 . | . . . . Level 5 . | . . . . High Security . | . . . . Max Security . | . . . . Peak Influence 231 | 5 81 114 231 Initial 24 | . . 24 21 Average 65 | . 19 48 92 Influence Increases 1339 | 5 207 232 895 Destroy 0b10 Robot/C 540 | . 60 80 400 Destroy 0b10 Robot/NC 130 | 5 15 35 75 Destroy Leader 148 | . 14 34 100 Allied During Kill 11 | . . . 11 Successful Hack 7 | . . . 7 Disable Machine 135 | . 30 . 105 Destroy Structure 293 | . 13 83 197 Lose Combat Pursuer 75 | . 75 . . Influence Decreases 1171 | 5 150 237 779 Entered New Map 64 | . . 33 31 Time Decay 987 | 5 150 204 628 Lost Part 100 | . . . 100 Lost Ally 20 | . . . 20 Squads Dispatched 5 | . 1 1 3 Investigation 1 | . 1 . . Extermination . | . . . . Reinforcement 2 | . . 1 1 Assault 2 | . . . 2 Garrison . | . . . . Intercept . | . . . . Searches Triggered . | . . . . Construction Impeded 1 | . . 1 . Haulers Reinforced . | . . . . Active Scanning Responses . | . . . . Cargo Convoy Interrupts . | . . . . Stealth | -11 -10 -9 -9 --------- Run | Yrd Mat Mat Sto Distress Signals 6 | . 1 2 3 Communications Jammed . | . . . . Distress Signals . | . . . . Times Spotted 57 | . 11 11 35 Peak Tracking Total 6 | . 3 5 6 Tactical Retreats 5 | . 5 . . Traps | -11 -10 -9 -9 ------- Run | Yrd Mat Mat Sto Traps Triggered 1 | . . . 1 Indirectly . | . . . . Trap Hack Attempts . | . . . . Triggered . | . . . . Disarmed . | . . . . Reprogrammed . | . . . . Reused . | . . . . Traps Extracted . | . . . . Installed . | . . . . Triggered . | . . . . Machines | -11 -10 -9 -9 ---------- Run | Yrd Mat Mat Sto Machines Disabled 9 | . 2 . 7 Max in Single Turn 1 | . 1 . 1 Machines Repaired . | . . . . Machines Dismantled . | . . . . Machines Sabotaged . | . . . . Overloaded Fab Kills . | . . . . Hacking | -11 -10 -9 -9 --------- Run | Yrd Mat Mat Sto Machines Accessed 2 | . . . 2 Terminals 1 | . . . 1 Fabricators . | . . . . Repair Stations . | . . . . Recycling Units 1 | . . . 1 Scanalyzers . | . . . . Garrison Access . | . . . . Total Hacks 2 | . . . 2 Successful 2 | . . . 2 Failed . | . . . . Catastrophic . | . . . . Database Lockouts . | . . . . Manual . | . . . . Terminals 1 | . . . 1 Fabricators . | . . . . Repair Stations . | . . . . Recycling Units 1 | . . . 1 Scanalyzers . | . . . . Garrison Access . | . . . . Terminal Hacks 1 | . . . 1 Open Door 1 | . . . 1 Fabricator Hacks . | . . . . Repair Station Hacks . | . . . . Recycling Unit Hacks 1 | . . . 1 Retrieve Components 1 | . . . 1 Scanalyzer . | . . . . Garrison Access Hacks . | . . . . Unauthorized Hacks . | . . . . Terminals . | . . . . Fabricators . | . . . . Repair Stations . | . . . . Recycling Units . | . . . . Scanalyzers . | . . . . Garrison Access . | . . . . Data Cores Recovered . | . . . . Used . | . . . . Hacking Detections 1 | . . . 1 Full Trace Events . | . . . . Feedback Events . | . . . . Feedback Blocked . | . . . . Robot Schematics Acquired . | . . . . Robots Built . | . . . . Authchips . | . . . . Time . | . . . . Total Robot Build Rating . | . . . . Part Schematics Acquired . | . . . . Parts Built . | . . . . Authchips . | . . . . Time . | . . . . Total Part Build Rating . | . . . . Part Studies Acquired . | . . . . Parts Repaired . | . . . . Time . | . . . . Parts Recycled . | . . . . Recycled Matter . | . . . . Retrieved Matter . | . . . . Retrieved Components 9 | . . . 9 Parts Scanalyzed . | . . . . Part Schematics Acquired . | . . . . Parts Damaged . | . . . . Bothacking | -11 -10 -9 -9 ------------ Run | Yrd Mat Mat Sto Used RIF Installer . | . . . . Robots Hacked . | . . . . Non-combat . | . . . . Combat . | . . . . Robot Hacks Applied . | . . . . Relay Couplers Released . | . . . . Fabnet Peak Effective % . | . . . . Robots Rewired . | . . . . Allies Hacked . | . . . . Hacks Repelled . | . . . . Allies | -11 -10 -9 -9 -------- Run | Yrd Mat Mat Sto Total Allies 2 | . . . 2 Largest Group 2 | . . . 2 Highest-Rated Group 62 | . . . 62 Highest-Rated Ally 31 | . . . 31 Total Orders . | . . . . Ally Attacks 5 | . . . 5 Total Damage 83 | . . . 83 Kills . | . . . . Allies Corrupted . | . . . . Allies Melted . | . . . . Intel | -11 -10 -9 -9 ------- Run | Yrd Mat Mat Sto Active Infowar (turns) . | . . . . Robot Analysis Total . | . . . . Derelict Logs Recovered . | . . . . Drone Launches . | . . . . Drone Recoveries . | . . . . Exploration | -11 -10 -9 -9 ------------- Run | Yrd Mat Mat Sto Turns Passed 3688 | 129 902 482 2175 Spaces Moved 1355 | 76 329 165 785 Core 9 | 9 . . . Treads 1346 | 67 329 165 785 Legs . | . . . . Wheels . | . . . . Hover . | . . . . Flight . | . . . . Fastest Speed 50 | 50 160 240 240 Average Speed 241 | 146 257 240 244 Slowest Speed 320 | 160 320 320 320 Overloaded Moves . | . . . . Propulsion Burnouts . | . . . . Robots Hopped . | . . . . Potential Cave-ins . | . . . . Cave-ins Triggered 1 | . . . 1 Exploration Rate (%) 38 | 4 49 18 81 Regions Visited 3 Branch Regions 1 Pre-discovered Areas . | . . . . Known Exits Taken . | . . . . Unknown Exits Taken 3 | 1 1 1 . Scrap Searched . | . . . . Spaces Dug 2 | . . . 2 Terrain Destroyed 307 | . 20 82 205 Melee 2 | . . . 2 Projectile . | . . . . AOE 305 | . 20 82 203 Terrain Rammed . | . . . . Walls Destroyed . | . . . . Machines Disabled . | . . . . Actions | -11 -10 -9 -9 --------- Run | Yrd Mat Mat Sto Total 1565 | 86 362 205 912 Wait 17 | . . 3 14 Move 1352 | 75 328 164 785 Hop . | . . . . Pick Up 33 | 3 7 5 18 Fast Attach 9 | 6 1 . 2 Attach 13 | . 1 2 10 Detach 7 | . 1 1 5 Swap 7 | . 2 1 4 Drop 6 | . 3 . 3 Fire 86 | 2 19 29 36 Melee 35 | . . . 35 Ram . | . . . . Kick . | . . . . Crush . | . . . . Escape Stasis . | . . . . Rewire . | . . . . Trap . | . . . . Miscellaneous . | . . . . Route ------- -11/Scrapyard -10/Materials -9/Materials -9/Storage History --------- Turn | Location | Event 12 | -11/Scrapyard | Discovered new exit (range 16) 130 | -11/Scrapyard | Entered Materials 311 | -10/Materials | Build established: Mutant 710 | -10/Materials | Discovered new exit (range 16) 1032 | -10/Materials | Entered another Materials area 1032 | -9/Materials | Evolved 2 slots: Propulsion x2 1470 | -9/Materials | Discovered new exit (range 8) 1514 | -9/Materials | Entered Storage 2853 | -9/Storage | Build established: Scavenger-Mutant 3304 | -9/Storage | Crushed by falling debris 3644 | -9/Storage | Met a pair of Derelict thieves 3689 | -9/Storage | Self-destructed Last Messages --------------- 03676_ Destroyed Imp. Ion Engine. 03676_ L-31 Rogue system corrupted by crushing effect. 03677_ U-05 Engineer lays Concrete. 03678_ Lgt. Treads destroyed. 03679_ U-05 Engineer lays Concrete. 03681_ R-06 Scavenger collects Katana. 03681_ U-05 Engineer lays Concrete. 03683_ L-31 Rogue knocked back. 03683_ U-05 Engineer lays Concrete. 03685_ R-06 Scavenger collects Imp. Ion Engine. 03685_ Lgt. Treads severed. 03685_ U-05 Engineer lays Concrete. 03686_ L-31 Rogue destroyed. 03686_ U-05 Engineer lays Concrete. 03686_ Lgt. Treads destroyed. 03687_ U-05 Engineer lays Concrete. 03688_ Rocket Launcher destroyed. 03689_ U-05 Engineer lays Concrete. 03689_ R-06 Scavenger collects Aluminum Leg. Map ----- +----------------------------------------------------+ | # #?########## """"" #?#[[[ | | # # #?? # """"" #?#[%""""" | | # # #??"""" # #?#[["** " | | # # ##?"[["" + #?# """" | | ###### ## "[["" ############?# """"" | | ###### ## """!!" #????????????# "[[*" | | # + ## ""![" #????????????# """" | | # # ## """" #####????????# | | # # ## * #?############+#### | | # + ######/########### # | | # # ##### + # """" # ### | | # # ##### # # "%%"" + ### | | # ?# t # # "[*"" # % #?? | | # ?####### # # " " + #?? | | # ?????# # + # ""=[" # #?? | | ###??##### # # # """" # #?? | | ?????#"""# # # # ? # #?? | | ?#####"Y"### # ########### ### | | ?# # # #? # # | | ?# # ##### #### """" # # | | ?# u ######??# """" + # | | ?#% = r% #?####?# """" # # " | | ?# """ """ # !!#?# """" # # " | | # """ """ [ " ! #?# + + | | ## """ """ =%u* !#?# # # " | | ?# *= [@ " #?# # # | | ?##" "#### g% T# !! #?# # # | | ??#"G"#??### g####?! !#?########## ### | | ??# " ?????#gg #????####??????????# #?? | | ??####?????# #??????????????????#####?? | | ???????????# #????????????????????????? | | ???????????# #????????????????????????? | | ???????????# #????????????????????????? | | ???????????# #????????????????????????? | | ???????????# +????????????????????????? | | ???????????# #????????????????????????? | | ???????????#% #????????????????????????? | | ???????????# #????????????????????????? | | ???????????# #????????????????????????? | | ???????????# ?????????????????????????? | | ???????????# ???????????????????????### | | ???????????# ???????????????????????#"" | | ???????????# ??????????????????????##"Y | | ???????????? ??????????????????????#*=* | | ?????????????????????????????????????# | | ?????????????????????????????????????# [ | | ??????????????????????????????????#""" | | ??????????????????????????????????#"R | | ??????????????????????????????????#""" | | ??????????????????????????????????#### | +----------------------------------------------------+ Best States ------------- Heat Dissipation 28 Energy Generation 17 Energy Capacity 280 Matter Stores 300 Matter Capacity 300 Sight Range 16 Terrain Scan Density 10 Evasion (%) 40 Targeting Accuracy 5 Recoil Reduction 4 Item Schematics ----------------- None Robot Schematics ------------------ None Fabricated ------------ Nothing Repaired ---------- Nothing Studied --------- None Alien Tech Used ----------------- None Achievements -------------- None Challenges ------------ None Game ------ Seed GravmagConceptBank Manual? 0 Play Time 00:31:23 Cumulative 64.0 hours Start 2026.06.27 @ 03:16:35 End 2026.06.27 @ 12:54:20 Sessions 3 Manual Loads 0 Difficulty Rogue Special Mode None Game No. 73 Rogue 19 Adventurer 54 Explorer 0 Win Type - Total 1 Types 1/0/0/0/0/0/0/0/0/0 Lore% 32 Gallery% 40 Achievement% 38 Wizard Run 0 Options --------- Layout 1 ASCII 0 Keyboard 1 Movement Arrows Keybinds 1 Fullscreen 1 Font 24/Terminus Map View 50x35 Zoom Use 0% Tactical HUD 1 Map Filters NONE Filters NONE Steam 1 RUN: 746b61f1-8c3b-44bb-8a51-b8cf7d869636